fUST/lending_fUST_20250723
["ID","MTS","AMOUNT","RATE_DAILY","PERIOD"]
[374114979,1753211453919,-460.0,0.00021482,2]
[374114980,1753211453930,-692.23,0.00021482,2]
[374114981,1753211453939,-3563.62,0.00021484,2]
[374114983,1753211453948,-2540.24,0.00021484,2]
[374114985,1753211453958,-481.07,0.00021484,2]
[374114987,1753211453967,-1901.28,0.00021484,2]
[374114989,1753211453977,-766.3,0.00021484,2]
[374114991,1753211453987,-1764.24762701,0.00021486,5]
[374114993,1753211453996,-3000.0,0.000215,2]
[374114995,1753211454006,-3000.0,0.0002151,2]
[374114997,1753211454015,-3000.0,0.0002152,2]
[374114999,1753211454024,-3000.0,0.0002153,2]
[374115001,1753211454034,-3000.0,0.0002154,2]
[374115003,1753211454044,-3000.0,0.0002155,2]
[374115005,1753211454053,-3000.0,0.0002156,2]
[374115007,1753211454062,-2500.0,0.00021564,2]
[374115010,1753211454073,-3000.0,0.0002157,2]
[374115012,1753211454084,-3000.0,0.0002158,2]
[374115014,1753211454093,-3000.0,0.0002159,2]
[374115016,1753211454102,-3000.0,0.000216,2]
[374115018,1753211454111,-3000.0,0.0002161,2]
[374115020,1753211454120,-3000.0,0.0002162,2]
[374115021,1753211454130,-3000.0,0.0002163,2]
[374115023,1753211454139,-3000.0,0.0002164,2]
[374115025,1753211454149,-3000.0,0.0002165,2]
[374115028,1753211454158,-764.27,0.00021749,2]
[374115029,1753211454167,-587.51,0.00021749,2]
[374115032,1753211454178,-732.02,0.00021749,2]
[374115034,1753211454187,-603.29,0.00021751,2]
[374115036,1753211454196,-498.02,0.00021751,2]
[374115038,1753211454205,-7415.17,0.00021751,2]
[374115040,1753211454215,-747.48,0.00021751,2]
[374115042,1753211454227,-821.56,0.00021751,2]
[374115044,1753211454238,-460.0,0.00021751,2]
[374115046,1753211454247,-515.7,0.00021752,2]
[374115048,1753211454257,-527.96,0.00021752,2]
[374115049,1753211454267,-460.0,0.00021753,2]
[374115051,1753211454276,-460.0,0.00021753,2]
[374115053,1753211454285,-477.23,0.00021754,2]
[374115055,1753211454295,-151.0,0.00021755,2]
[374115057,1753211454306,-151.0,0.00021755,2]
[374115059,1753211454317,-468.75,0.00021756,2]
[374115061,1753211454326,-460.0,0.00021756,2]
[374115063,1753211454335,-692.23,0.00021756,2]
[374115065,1753211454344,-3563.62,0.00021758,2]
[374115067,1753211454354,-2540.24,0.00021758,2]
[374115069,1753211454363,-481.07,0.00021758,2]
[374115071,1753211454372,-1901.28,0.00021758,2]
[374115073,1753211454381,-766.3,0.00021758,2]
[374115082,1753211454459,-1764.24762701,0.00021762,5]
[374115085,1753211454479,-151.0,0.00021917,2]
[374115087,1753211454489,-151.0,0.00021918,2]
[374115089,1753211454501,-151.0,0.00021918,2]
[374115091,1753211454511,-860.0,0.00021962,2]
[374115092,1753211454520,-183.92,0.00022,7]
[374115094,1753211454529,-308.33,0.00022,7]
[374115096,1753211454539,-2040.92,0.00022,7]
[374115098,1753211454549,-22864.15,0.00022,2]
[374115100,1753211454558,-177.0,0.00022,2]
[374115103,1753211454568,-764.27,0.00022023,2]
[374115105,1753211454577,-587.51,0.00022023,2]
[374115107,1753211454586,-732.02,0.00022023,2]
[374115109,1753211454595,-603.29,0.00022025,2]
[374115111,1753211454604,-498.02,0.00022025,2]
[374115113,1753211454614,-7415.17,0.00022025,2]
[374115115,1753211454623,-747.48,0.00022025,2]
[374115117,1753211454632,-821.56,0.00022025,2]
[374115119,1753211454642,-460.0,0.00022025,2]
[374115121,1753211454651,-515.7,0.00022026,2]
[374115123,1753211454661,-527.96,0.00022026,2]
[374115125,1753211454670,-460.0,0.00022027,2]
[374115127,1753211454681,-460.0,0.00022027,2]
[374115129,1753211454691,-477.23,0.00022028,2]
[374115131,1753211454701,-468.75,0.0002203,2]
[374115133,1753211454711,-594.90578639,0.0002203,2]
[374115135,1753211454720,-692.23,0.0002203,2]
[374115137,1753211454730,-3563.62,0.00022032,2]
[374115138,1753211454740,-2540.24,0.00022032,2]
[374115140,1753211454750,-481.07,0.00022032,2]
[374115142,1753211454759,-1901.28,0.00022032,2]
[374115144,1753211454769,-766.3,0.00022032,2]
[374115146,1753211454778,-1764.24762701,0.00022038,6]
[374115148,1753211454787,-3000.0,0.00022112,2]
[374115150,1753211454797,-407.0,0.00022123,2]
[374115152,1753211454807,-1445.2,0.00022286,2]
[374115154,1753211454817,-764.27,0.00022297,2]
[374115156,1753211454826,-587.51,0.00022297,2]
[374115158,1753211454836,-732.02,0.00022297,2]
[374115160,1753211454846,-603.29,0.00022299,2]
[374115162,1753211454855,-498.02,0.00022299,2]
[374115164,1753211454864,-7415.17,0.00022299,2]
[374115166,1753211454873,-747.48,0.00022299,2]
[374115168,1753211454883,-821.56,0.00022299,2]
[374115170,1753211454892,-460.0,0.00022299,2]
[374115172,1753211454901,-515.7,0.000223,2]
[374115174,1753211454911,-527.96,0.000223,2]
[374115176,1753211454921,-460.0,0.00022301,2]
[374115178,1753211454930,-460.0,0.00022301,2]
[374115180,1753211454940,-477.23,0.00022302,2]
[374115182,1753211454949,-468.75,0.00022304,2]
[374115184,1753211454959,-692.23,0.00022304,2]
[374115186,1753211454968,-281.812296,0.00022306,7]
[374115188,1753211454977,-281.812296,0.00022306,7]
[374115190,1753211454986,-3563.62,0.00022306,2]
[374115191,1753211454996,-2540.24,0.00022306,2]
[374115192,1753211455005,-481.07,0.00022306,2]
[374115193,1753211455015,-1901.28,0.00022306,2]
[374115195,1753211455025,-766.3,0.00022306,2]
[374115197,1753211455035,-1764.24762701,0.00022314,7]
[374115199,1753211455045,-150.0,0.00022384,2]
[374115201,1753211455054,-150.0,0.00022384,2]
[374115203,1753211455064,-648.0,0.00022384,2]
[374115205,1753211455073,-2157.0,0.00022384,2]
[374115206,1753211455083,-968.0,0.00022384,2]
[374115207,1753211455092,-224.32,0.0002244,2]
[374115208,1753211455102,-1772.34,0.00022465,2]
[374115209,1753211455111,-800.0,0.0002247,2]
[374115210,1753211455130,-460.0,0.0002251,2]
[374115211,1753211455147,-764.27,0.00022571,2]
[374115212,1753211455164,-587.51,0.00022571,2]
[374115213,1753211455182,-732.02,0.00022571,2]
[374115214,1753211455200,-603.29,0.00022573,2]
[374115215,1753211455216,-498.02,0.00022573,2]
[374115216,1753211455237,-7415.17,0.00022573,2]
[374115217,1753211455251,-747.48,0.00022573,2]
[374115218,1753211455267,-821.56,0.00022573,2]
[374115219,1753211455284,-460.0,0.00022573,2]
[374115220,1753211455298,-515.7,0.00022574,2]
[374115221,1753211455312,-527.96,0.00022574,2]
[374115222,1753211455328,-460.0,0.00022575,2]
[374115223,1753211455343,-219.83342747,0.00022575,2]
[374115224,1753211455359,-477.23,0.00022576,2]
[374115225,1753211455376,-468.75,0.00022578,2]
[374115227,1753211455389,-692.23,0.00022578,2]
[374115229,1753211455400,-3563.62,0.0002258,2]
[374115232,1753211455416,-2540.24,0.0002258,2]
[374115234,1753211455432,-481.07,0.0002258,2]
[374115235,1753211455443,-1901.28,0.0002258,2]
[374115236,1753211455458,-766.3,0.0002258,2]
[374115238,1753211455470,-1764.24762701,0.0002259,7]
[374115241,1753211455482,-458.060555,0.00022603,2]
[374115243,1753211455496,-595.94369656,0.0002266,2]
[374115245,1753211455508,-231.28369723,0.00022799,2]
[374115247,1753211455520,-764.27,0.00022845,2]
[374115250,1753211455533,-587.51,0.00022845,2]
[374115252,1753211455545,-732.02,0.00022845,2]
[374115255,1753211455559,-603.29,0.00022847,2]
[374115257,1753211455572,-498.02,0.00022847,2]
[374115259,1753211455584,-7415.17,0.00022847,2]
[374115262,1753211455596,-747.48,0.00022847,2]
[374115264,1753211455609,-821.56,0.00022847,2]
[374115266,1753211455622,-598.84,0.00022847,2]
[374115269,1753211455635,-515.7,0.00022848,2]
[374115271,1753211455648,-527.96,0.00022848,2]
[374115273,1753211455660,-460.0,0.00022849,2]
[374115276,1753211455673,-477.23,0.0002285,2]
[374115278,1753211455687,-152.610089,0.00022852,7]
[374115281,1753211455701,-151.0,0.00022852,7]
[374115283,1753211455713,-468.75,0.00022852,2]
[374115285,1753211455727,-692.23,0.00022852,2]
[374115288,1753211455739,-3563.62,0.00022854,2]
[374115290,1753211455748,-2540.24,0.00022854,2]
[374115292,1753211455757,-481.07,0.00022854,2]
[374115294,1753211455766,-1901.28,0.00022854,2]
[374115296,1753211455776,-766.3,0.00022854,2]
[374115298,1753211455785,-1764.24762701,0.00022866,8]
[374115300,1753211455795,-160.0,0.00023,2]
[374115302,1753211455804,-177.0,0.00023014,7]
[374115304,1753211455814,-764.29,0.00023119,2]
[374115305,1753211455824,-587.61,0.00023119,2]
[374115306,1753211455834,-732.12,0.00023119,2]
[374115307,1753211455844,-603.48,0.00023121,2]
[374115308,1753211455854,-498.21150097,0.00023121,2]
[374115309,1753211455863,-7415.24326052,0.00023121,2]
[374115310,1753211455873,-747.5584528,0.00023121,2]
[374115311,1753211455883,-821.66776216,0.00023121,2]
[374115312,1753211455893,-515.83,0.00023122,2]
[374115313,1753211455903,-528.13,0.00023122,2]
[374115314,1753211455913,-272.26668438,0.00023123,2]
[374115315,1753211455923,-477.24,0.00023124,2]
[374115316,1753211455935,-468.75,0.00023126,2]
[374115317,1753211455945,-692.23,0.00023126,2]
[374115318,1753211455963,-151.0,0.00023127,7]
[374115319,1753211456133,-3563.62,0.00023128,2]
[374115320,1753211456153,-2540.25,0.00023128,2]
[374115321,1753211456165,-481.29651489,0.00023128,2]
[374115322,1753211456174,-1901.45716515,0.00023128,2]
[374115323,1753211456184,-766.50385978,0.00023128,2]
[374115324,1753211456193,-1764.24762701,0.00023141,8]
[374115325,1753211456202,-500.0,0.00023376,2]
[374115326,1753211456213,-600.0,0.00023397,2]
[374115327,1753211456223,-5958.2057685,0.000234,2]
[374115328,1753211456240,-352.156064,0.000234,2]
[374118624,1753211565515,4644.0,0.00026027,120]
[374118625,1753211697986,6324.68,0.00016764,2]
[374118626,1753211930508,178.31627866,0.00016721,2]
[374118628,1753211977530,354.47962536,0.00016721,2]
[374118629,1753212156946,24900.0,0.00015821,2]
[374118631,1753212271940,563.51658,0.00013699,2]
[374118632,1753212291089,5475.619641,0.00015821,2]
[374118633,1753212326930,310.16967219,0.0001672,2]
[374118637,1753212517162,628.60668958,0.00025119,30]
[374118638,1753212517189,244.66192407,0.00025119,30]
[374118639,1753212528087,403.33229422,0.00025119,120]
[374118640,1753212528225,300.0,0.00025119,30]
[374118688,1753212632038,-300.0,0.00016814,2]
[374118689,1753212632048,-720.6724831,0.00016814,2]
[374118693,1753212632095,-479.3275169,0.00016814,2]
[374118695,1753212632104,-300.0,0.00016815,2]
[374118696,1753212632114,-215.0,0.00016815,2]
[374118697,1753212632123,-300.0,0.00016815,2]
[374118698,1753212632133,-300.0,0.00016815,2]
[374118699,1753212632143,-300.0,0.00016815,2]
[374118700,1753212632155,-460.0,0.00016816,2]
[374118701,1753212632165,-460.0,0.00016816,2]
[374118702,1753212632175,-204.69910929,0.00016816,2]
[374118703,1753212632184,-460.0,0.00016817,2]
[374118704,1753212632194,-121.25895223,0.00016817,2]
[374118705,1753212632206,-338.74104777,0.00016817,2]
[374118706,1753212632215,-460.0,0.00016817,2]
[374118707,1753212632225,-460.0,0.00016817,2]
[374118708,1753212632235,-557.74,0.00016817,2]
[374118709,1753212632244,-460.0,0.00016817,2]
[374118710,1753212632253,-247.85280869,0.00016817,2]
[374118711,1753212632263,-460.0,0.00016817,2]
[374118712,1753212632272,-460.0,0.00016817,2]
[374118713,1753212632282,-571.13,0.00016817,2]
[374118714,1753212632291,-294.6349544,0.00016817,2]
[374118715,1753212632303,-165.3650456,0.00016817,2]
[374118716,1753212632312,-544.55,0.00016817,2]
[374118717,1753212632322,-131.19796344,0.00016817,2]
[374118718,1753212632334,-328.80203656,0.00016817,2]
[374118719,1753212632344,-460.0,0.00016817,2]
[374118720,1753212632362,-460.0,0.00016817,2]
[374118721,1753212632374,-18.55936628,0.00016817,2]
[374118722,1753212632388,-441.44063372,0.00016817,2]
[374118723,1753212632400,-460.0,0.00016817,2]
[374118724,1753212632411,-460.0,0.00016817,2]
[374118725,1753212632420,-460.0,0.00016817,2]
[374118726,1753212632431,-460.0,0.00016817,2]
[374118727,1753212632440,-460.0,0.00016817,2]
[374118728,1753212632450,-460.0,0.00016817,2]
[374118729,1753212632460,-460.0,0.00016817,2]
[374118730,1753212632470,-460.0,0.00016817,2]
[374118731,1753212632479,-827.18,0.00016817,2]
[374118732,1753212632489,-460.0,0.00016817,2]
[374118733,1753212632499,-460.0,0.00016817,2]
[374118734,1753212632508,-460.0,0.00016817,2]
[374118735,1753212632518,-460.0,0.00016817,2]
[374118736,1753212632528,-460.0,0.00016818,2]
[374118737,1753212632538,-471.42,0.00016818,2]
[374118738,1753212632549,-460.0,0.00016818,2]
[374118739,1753212632560,-460.0,0.00016818,2]
[374118740,1753212632569,-460.0,0.00016818,2]
[374118741,1753212632579,-606.59,0.00016818,2]
[374118742,1753212632589,-460.0,0.00016818,2]
[374118743,1753212632598,-460.0,0.00016818,2]
[374118744,1753212632608,-460.0,0.00016818,2]
[374118745,1753212632618,-460.0,0.00016818,2]
[374118746,1753212632627,-491.16336141,0.00016818,2]
[374118747,1753212632637,-460.0,0.00016818,2]
[374118748,1753212632648,-460.0,0.00016818,2]
[374118749,1753212632657,-460.0,0.00016818,2]
[374118750,1753212632667,-460.0,0.00016818,2]
[374118751,1753212632676,-484.08,0.00016818,2]
[374118752,1753212632686,-460.0,0.00016818,2]
[374118753,1753212632696,-95.62425859,0.00016818,2]
[374118780,1753212637903,-453.79694927,0.00016817,2]
[374118787,1753212637955,-6.20305073,0.00016817,2]
[374118789,1753212637964,-364.37574141,0.00016818,2]
[374118791,1753212637973,-460.0,0.00016818,2]
[374118793,1753212637983,-460.0,0.00016818,2]
[374118795,1753212637992,-460.0,0.00016818,2]
[374118796,1753212638001,-460.0,0.00016818,2]
[374118797,1753212638010,-460.0,0.00016818,2]
[374118798,1753212638019,-460.0,0.00016818,2]
[374118799,1753212638029,-460.0,0.00016818,2]
[374118800,1753212638038,-460.0,0.00016818,2]
[374118801,1753212638047,-460.0,0.00016818,2]
[374118802,1753212638057,-460.0,0.00016818,2]
[374118803,1753212638066,-460.0,0.00016818,2]
[374118804,1753212638076,-460.0,0.00016818,2]
[374118805,1753212638085,-460.0,0.00016818,2]
[374118806,1753212638095,-460.0,0.00016818,2]
[374118808,1753212638105,-460.0,0.00016818,2]
[374118810,1753212638114,-231.39501375,0.00016818,2]
[374118812,1753212638123,-460.0,0.00016818,2]
[374118814,1753212638131,-460.0,0.00016818,2]
[374118816,1753212638141,-460.0,0.00016818,2]
[374118818,1753212638149,-460.0,0.00016818,2]
[374118820,1753212638162,-460.0,0.00016818,2]
[374118822,1753212638171,-460.0,0.00016818,2]
[374118824,1753212638180,-460.0,0.00016818,2]
[374118826,1753212638190,-460.0,0.00016818,2]
[374118828,1753212638200,-460.0,0.00016818,2]
[374118830,1753212638209,-343.27738576,0.00016818,2]
[374118832,1753212638221,-116.72261424,0.00016818,2]
[374118833,1753212638231,-460.0,0.00016818,2]
[374118834,1753212638240,-323.89738576,0.00016818,2]
[374118836,1753212638252,-136.10261424,0.00016818,2]
[374118838,1753212638261,-460.0,0.00016818,2]
[374118839,1753212638271,-460.0,0.00016818,2]
[374118840,1753212638280,-4.24897371,0.00016818,2]
[374118841,1753212638292,-455.75102629,0.00016818,2]
[374118842,1753212638302,-460.0,0.00016818,2]
[374118843,1753212638312,-460.0,0.00016818,2]
[374118844,1753212638321,-460.0,0.00016818,2]
[374118845,1753212638331,-466.04290391,0.00016818,2]
[374118846,1753212638340,-460.0,0.00016818,2]
[374118847,1753212638349,-460.0,0.00016818,2]
[374118848,1753212638359,-460.0,0.00016818,2]
[374118849,1753212638368,-460.0,0.00016818,2]
[374118850,1753212638378,-460.0,0.00016819,2]
[374118851,1753212638388,-460.0,0.00016819,2]
[374118852,1753212638398,-105.21579009,0.00016819,2]
[374118853,1753212638414,-354.78420991,0.00016819,2]
[374118854,1753212638424,-460.0,0.00016819,2]
[374118855,1753212638433,-460.0,0.00016819,2]
[374118856,1753212638442,-276.23165664,0.00016819,2]
[374118857,1753212638452,-460.0,0.00016819,2]
[374118858,1753212638462,-460.0,0.00016819,2]
[374118859,1753212638471,-460.0,0.00016819,2]
[374118860,1753212638481,-107.24868213,0.00016819,2]
[374118861,1753212638495,-352.75131787,0.00016819,2]
[374118862,1753212638505,-107.24868213,0.00016819,2]
[374118863,1753212638516,-352.75131787,0.00016819,2]
[374118864,1753212638525,-460.0,0.00016819,2]
[374118865,1753212638534,-104.27911204,0.00016819,2]
[374118866,1753212638673,-355.72088796,0.00016819,2]
[374118867,1753212638683,-457.34053768,0.00016819,2]
[374118868,1753212638696,-2.65946232,0.00016819,2]
[374118869,1753212638705,-520.0534665,0.00016819,2]
[374118870,1753212638718,-547.6465335,0.00016819,2]
[374118871,1753212638728,-460.0,0.00016819,2]
[374118872,1753212638738,-460.0,0.00016819,2]
[374118873,1753212638748,-460.0,0.00016819,2]
[374118874,1753212638758,-472.3534665,0.00016819,2]
[374118875,1753212638770,-1521.7165335,0.00016819,2]
[374118876,1753212638779,-302.5676749,0.00016819,2]
[374118877,1753212638799,-157.4323251,0.00016819,2]
[374118878,1753212638808,-460.0,0.00016819,2]
[374118879,1753212638818,-364.13906412,0.00016819,2]
[374118880,1753212638827,-460.0,0.00016819,2]
[374118881,1753212638837,-460.0,0.00016819,2]
[374118882,1753212638974,-460.0,0.00016819,2]
[374118883,1753212638984,-460.0,0.00016819,2]
[374118884,1753212638994,-460.0,0.00016819,2]
[374118885,1753212639003,-460.0,0.00016819,2]
[374118886,1753212639013,-151.0,0.00016819,2]
[374118887,1753212639022,-500.0,0.00016819,2]
[374118888,1753212639032,-805.0,0.00016819,2]
[374118889,1753212639042,-460.0,0.0001682,2]
[374118890,1753212639051,-460.0,0.0001682,2]
[374118891,1753212639061,-460.0,0.0001682,2]
[374118892,1753212639070,-460.0,0.0001682,2]
[374118893,1753212639080,-550.03073719,0.0001682,2]
[374118894,1753212639089,-314.904692,0.0001682,2]
[374118895,1753212639099,-461.62467188,0.0001682,2]
[374118896,1753212639109,-460.0,0.0001682,2]
[374118897,1753212639119,-460.0,0.0001682,2]
[374118898,1753212639128,-460.0,0.0001682,2]
[374118899,1753212639137,-498.02,0.0001682,2]
[374118900,1753212639146,-453.74061566,0.0001682,2]
[374118901,1753212639156,-675.06,0.0001682,2]
[374118902,1753212639166,-460.0,0.0001682,2]
[374118903,1753212639175,-460.0,0.0001682,2]
[374118904,1753212639185,-242.98330462,0.0001682,2]
[374118905,1753212639195,-460.0,0.0001682,2]
[374118906,1753212639204,-460.0,0.0001682,2]
[374118907,1753212639213,-500.0,0.0001682,2]
[374118908,1753212639221,-151.0,0.0001682,2]
[374118909,1753212639232,-151.87870992,0.0001682,2]
[374118910,1753212639242,-500.0,0.0001682,2]
[374118911,1753212639251,-460.0,0.0001682,2]
[374118912,1753212639261,-151.0,0.0001682,2]
[374118913,1753212639270,-151.0,0.0001682,2]
[374118914,1753212639280,-151.75423861,0.0001682,2]
[374118915,1753212639289,-500.0,0.0001682,2]
[374118916,1753212639299,-500.0,0.0001682,2]
[374118917,1753212639308,-151.0,0.0001682,2]
[374118918,1753212639317,-151.52218414,0.0001682,2]
[374118919,1753212639328,-154.39491513,0.0001682,2]
[374118920,1753212639337,-151.0,0.0001682,2]
[374118921,1753212639346,-151.0,0.0001682,2]
[374118922,1753212639355,-274.08742551,0.0001682,2]
[374118923,1753212639364,-151.0,0.0001682,2]
[374118924,1753212639374,-151.0,0.0001682,2]
[374118925,1753212639383,-500.0,0.0001682,2]
[374118926,1753212639392,-460.0,0.0001682,2]
[374118927,1753212639404,-460.0,0.0001682,2]
[374118928,1753212639414,-460.0,0.0001682,2]
[374118929,1753212639423,-460.0,0.0001682,2]
[374118930,1753212639432,-460.0,0.0001682,2]
[374118931,1753212639442,-715.16,0.0001682,2]
[374118932,1753212639451,-460.0,0.0001682,2]
[374118933,1753212639459,-151.0,0.00016821,2]
[374118934,1753212639469,-727.0,0.00016821,2]
[374118935,1753212639478,-246.48917632,0.00016821,2]
[374118936,1753212639488,-151.0,0.00016821,2]
[374118938,1753212639497,-500.0,0.00016821,2]
[374118939,1753212639506,-151.0,0.00016821,2]
[374118940,1753212639515,-907.23,0.00016821,2]
[374118941,1753212639524,-460.0,0.00017091,2]
[374118942,1753212639535,-460.0,0.00017091,2]
[374118943,1753212639544,-460.0,0.00017091,2]
[374118945,1753212639555,-460.0,0.00017091,2]
[374118946,1753212639565,-231.11,0.00017091,2]
[374118947,1753212639575,-460.0,0.00017091,2]
[374118949,1753212639584,-460.0,0.00017091,2]
[374118951,1753212639593,-460.0,0.00017091,2]
[374118953,1753212639604,-460.0,0.00017091,2]
[374118955,1753212639617,-460.0,0.00017091,2]
[374118957,1753212639632,-460.0,0.00017091,2]
[374118959,1753212639641,-460.0,0.00017091,2]
[374118961,1753212639652,-827.18,0.00017091,2]
[374118963,1753212639662,-460.0,0.00017091,2]
[374118965,1753212639671,-460.0,0.00017091,2]
[374118967,1753212639681,-460.0,0.00017091,2]
[374118969,1753212639690,-460.0,0.00017091,2]
[374118971,1753212639700,-460.0,0.00017091,2]
[374118973,1753212639709,-460.0,0.00017092,2]
[374118974,1753212639719,-500.0,0.00017092,2]
[374118976,1753212639729,-460.90525251,0.00017092,2]
[374118977,1753212639738,-460.0,0.00017092,2]
[374118978,1753212639748,-460.0,0.00017092,2]
[374118979,1753212639757,-606.53522985,0.00017092,2]
[374118980,1753212639766,-460.0,0.00017092,2]
[374118981,1753212639775,-460.0,0.00017092,2]
[374118982,1753212639785,-655.32,0.00017092,2]
[374118983,1753212639796,-460.0,0.00017092,2]
[374118984,1753212639806,-488.38,0.00017092,2]
[374118985,1753212639816,-460.0,0.00017092,2]
[374118986,1753212639826,-460.0,0.00017092,2]
[374118987,1753212639835,-460.0,0.00017092,2]
[374118988,1753212639845,-460.0,0.00017092,2]
[374118989,1753212639854,-460.0,0.00017092,2]
[374118990,1753212639864,-484.08,0.00017092,2]
[374118991,1753212639873,-485.14465566,0.00017092,2]
[374118992,1753212639883,-460.0,0.00017092,2]
[374118993,1753212639892,-460.0,0.00017092,2]
[374118994,1753212639905,-460.0,0.00017092,2]
[374118995,1753212639914,-460.0,0.00017092,2]
[374118996,1753212639924,-460.0,0.00017092,2]
[374118997,1753212639933,-460.0,0.00017092,2]
[374118998,1753212639943,-460.0,0.00017092,2]
[374118999,1753212639953,-460.0,0.00017092,2]
[374119000,1753212639962,-460.0,0.00017092,2]
[374119001,1753212639972,-460.0,0.00017092,2]
[374119002,1753212639982,-460.0,0.00017092,2]
[374119003,1753212639991,-460.0,0.00017092,2]
[374119004,1753212640000,-558.47,0.00017092,2]
[374119005,1753212640010,-535.59,0.00017092,2]
[374119007,1753212640020,-460.0,0.00017092,2]
[374119009,1753212640029,-460.0,0.00017092,2]
[374119011,1753212640039,-460.0,0.00017092,2]
[374119013,1753212640048,-253.94125201,0.00017092,2]
[374119015,1753212640057,-460.0,0.00017092,2]
[374119017,1753212640068,-460.0,0.00017092,2]
[374119019,1753212640077,-460.0,0.00017092,2]
[374119021,1753212640086,-460.0,0.00017092,2]
[374119023,1753212640095,-460.0,0.00017092,2]
[374119025,1753212640105,-460.0,0.00017092,2]
[374119027,1753212640115,-460.0,0.00017092,2]
[374119029,1753212640124,-460.0,0.00017092,2]
[374119031,1753212640134,-460.0,0.00017092,2]
[374119033,1753212640143,-460.0,0.00017092,2]
[374119035,1753212640155,-460.0,0.00017092,2]
[374119037,1753212640164,-460.0,0.00017092,2]
[374119039,1753212640174,-460.0,0.00017092,2]
[374119041,1753212640184,-151.0,0.00017093,2]
[374119043,1753212640194,-500.0,0.00017093,2]
[374119045,1753212640204,-805.0,0.00017093,2]
[374119047,1753212640213,-547.67,0.00017093,2]
[374119049,1753212640222,-228.73,0.00017093,2]
[374119051,1753212640232,-460.0,0.00017093,2]
[374119053,1753212640241,-460.0,0.00017093,2]
[374119055,1753212640251,-460.0,0.00017093,2]
[374119057,1753212640260,-460.0,0.00017093,2]
[374119059,1753212640269,-1067.7,0.00017093,2]
[374119061,1753212640277,-1994.07,0.00017093,2]
[374119063,1753212640286,-460.0,0.00017093,2]
[374119065,1753212640296,-460.0,0.00017093,2]
[374119067,1753212640305,-500.0,0.00017094,2]
[374119069,1753212640315,-151.0,0.00017094,2]
[374119071,1753212640324,-500.0,0.00017094,2]
[374119073,1753212640334,-151.0,0.00017094,2]
[374119075,1753212640344,-500.0,0.00017094,2]
[374119077,1753212640354,-151.0,0.00017094,2]
[374119079,1753212640363,-152.54299812,0.00017094,2]
[374119081,1753212640373,-151.0,0.00017094,2]
[374119083,1753212640383,-500.0,0.00017094,2]
[374119085,1753212640391,-483.00802276,0.00017094,2]
[374119087,1753212640402,-675.06,0.00017094,2]
[374119089,1753212640415,-460.0,0.00017094,2]
[374119091,1753212640424,-460.0,0.00017094,2]
[374119093,1753212640434,-460.0,0.00017094,2]
[374119095,1753212640444,-460.0,0.00017094,2]
[374119097,1753212640455,-460.0,0.00017094,2]
[374119099,1753212640465,-460.0,0.00017094,2]
[374119102,1753212640475,-460.0,0.00017094,2]